Workbook

Sheet просчет
A1: 2016-02-08 | B1: макрос, при выполнении которого, ячейки, выделенные желтым цветом, перемещались на первую свободную строку в лист "в работе"
A2: Тираж, шт | C2: стоимость ПНД, руб | D2: стоимость ПВД, руб | E2: курс $, руб | F2: курс €, руб
A3: 20000 | C3: 109.6 | D3: 103.1 | E3: 80
A6: ВИД | B6: цвет | C6: кол-во цветов | D6: материал | E6: толщина, мкм
A7: МАЙКА | B7: ЗЕЛЕНЫЙ | C7: 1+0 | D7: ПНД | E7: 25
A10: ширина, см | B10: бок, см | C10: высота, см | D10: дно, см | H10: Вес 1 пакета, гр
A11: 30 | B11: 16 | C11: 60 | D11: 0 | H11: =IF(A7="рукав",1000,SUM(IF(A7="ВУР","3","0"),(PRODUCT(SUM(A11,B11),SUM(C11,D11),E7,SUM(IF(D7="ПНД","0,95","0"),IF(D7="ПВД","0,93","0"),IF(D7="ПСД","0,94","0")),2)/10000))) -> 13.11
A14: Цена за кг, руб | C14: Стоимость за 1шт, руб | F14: Стоимость тиража, руб | H14: Вес тиража, кг
A15: =[1]инф!G92 -> 169.67 | C15: =IF(A7="рукав",0,ROUND((A15*H11/1000),2)) -> 2.22 | D15: нет | F15: =IF(A7="рукав",PRODUCT(A3,A15),PRODUCT(A3,C15)) -> 44400 | H15: =A3*H11/1000 -> 262.2
A17: МЕНЕЕ 60 КГ ТИРАЖ РАСЧИТЫВАЕТСЯ ПО МАКМСИМАЛЬНО ВЫСОКОЙ ЦЕНЕ
X103: намотка не более 30 см

Sheet В работе
A1: Дата | B1: Заказчик | C1: Название | D1: Тип пакета | E1: цвет супера | F1: Цветность | G1: шир | H1: бок | I1: выс | J1: дон | K1: усил | L1: П/Э | M1: толщ | N1: Вес | O1: За 1кг | Q1: Кол-во | R1: Цена | S1: Сумма | U1: Счет | V1: колво | W1: чистый вес
A2: 2016-02-08 | Q2: 20000
A3: 2017-01-11 | D3: Майка | E3: белый | F3: 2+2 | G3: 20 | I3: 55 | L3: ПНД | M3: 32 | N3: =IF(D3="рукав",1000,SUM(IF(K3="усил","3","0"),(PRODUCT(SUM(G3,H3),SUM(I3,J3),M3,SUM(IF(L3="ПНД","0,95","0"),IF(L3="ПВД","0,93","0"),IF(L3="ПСД","0,94","0")),2)/10000))) -> 6.688 | O3: =PRODUCT(1000,R3)/N3 -> 149.5215311 | P3: =IF(D3="рукав",1000,SUM(IF(K3="усил","0","0"),(PRODUCT(SUM(G3,H3),SUM(I3,J3),M3,SUM(IF(L3="ПНД","0,95","0"),IF(L3="ПВД","0,93","0"),IF(N3="ПСД","0,94","0")),2)/10000))) -> 6.688 | Q3: 150000
A4: 2017-01-15 | D4: ВНУР | E4: белый | F4: 2+2 | G4: 40 | I4: 50 | L4: ПВД | M4: 45 | N4: 16.74 | O4: 59.73715651 | P4: =IF(D4="рукав",1000,SUM(IF(K4="усил","0","0"),(PRODUCT(SUM(G4,H4),SUM(I4,J4),M4,SUM(IF(L4="ПНД","0,95","0"),IF(L4="ПВД","0,93","0"),IF(L4="ПСД","0,94","0")),2)/10000))) -> 16.74 | Q4: 30000
A5: 2017-01-15 | D5: ВНУР | E5: белый | F5: 2+2 | G5: 40 | H5: 8 | I5: 50 | L5: ПВД | M5: 45 | N5: 20.088 | O5: 49.78096376 | P5: 20.088 | Q5: 30000
A6: 2017-01-15 | D6: ВНУР | E6: белый | F6: 2+2 | G6: 50 | H6: 12 | I6: 58 | L6: ПВД | M6: 45 | N6: 30.09852 | O6: 33.22422498 | P6: 30.09852 | Q6: 15000
A7: 2012-01-20 | D7: фасовка | E7: прозрачный | F7: 2+0 | G7: 42 | H7: 20 | I7: 54 | L7: ПНД | M7: 13 | N7: 8.26956 | O7: 120.925418 | P7: 8.26956 | Q7: 19000
A8: 2012-01-20 | D8: фасовка | E8: прозрачный | F8: 2+0 | G8: 25 | I8: 45 | L8: ПНД | M8: 13 | N8: 2.77875 | O8: 359.8740441 | P8: 2.77875 | Q8: 29000
A9: 2012-01-20 | D9: фасовка | E9: прозрачный | F9: 1+0 | G9: 30 | I9: 40 | L9: ПСД | M9: 30 | N9: 6.768 | O9: 147.7541371 | P9: 6.768 | Q9: 100000
A10: 2012-01-20 | D10: фасовка | E10: прозрачный | F10: 1+0 | G10: 30 | I10: 40 | L10: ПСД | M10: 30 | N10: 6.768 | O10: 147.7541371 | P10: 6.768 | Q10: 150000
A11: 2012-01-20 | D11: ВУР | E11: белый | F11: 2+0 | G11: 38 | I11: 50 | J11: 4 | K11: усил | L11: ПВД | M11: 70 | N11: 29.71704 | O11: 33.65072699 | P11: 26.71704 | Q11: 5000
A12: 2012-01-20 | D12: ВУР | E12: белый | F12: 2+0 | G12: 60 | I12: 50 | J12: 4 | K12: усил | L12: ПВД | M12: 80 | N12: 51.2112 | O12: 19.52697847 | P12: 48.2112 | Q12: 5000
A13: 2012-01-20 | D13: ВУР | E13: белый | F13: 2+0 | G13: 38 | I13: 50 | J13: 4 | K13: усил | L13: ПВД | M13: 70 | N13: 29.71704 | O13: 33.65072699 | P13: 26.71704 | Q13: 5000
A14: 2012-01-20 | D14: ВУР | E14: белый | F14: 2+0 | G14: 60 | I14: 50 | J14: 4 | K14: усил | L14: ПВД | M14: 80 | N14: 51.2112 | O14: 19.52697847 | P14: 48.2112 | Q14: 5000
A15: 2012-01-20 | D15: Майка | E15: салатовый | F15: 1+0 | G15: 30 | H15: 14 | I15: 60 | L15: ПНД | M15: 15 | N15: 7.524 | O15: 132.9080276 | P15: 7.524 | Q15: 50000
A16: 2012-01-20 | D16: Майка | E16: салатовый | F16: 1+0 | G16: 30 | H16: 14 | I16: 60 | L16: ПНД | M16: 15 | N16: 7.524 | O16: 132.9080276 | P16: 7.524 | Q16: 50000
A17: 2012-01-21 | D17: Фасовка | E17: голубой | F17: без печати | G17: 50 | I17: 105 | L17: ПНД | M17: 50 | N17: 49.875 | O17: 20.05012531 | P17: 49.875 | Q17: 60000
A18: 2012-01-22 | D18: Майка | E18: белый | F18: 1+1 | G18: 32 | H18: 24 | I18: 60 | L18: ПНД | M18: 14 | N18: 8.9376 | O18: 111.88686 | P18: 8.9376 | Q18: 20000
A19: 2012-01-22 | D19: Майка | E19: прозрачный | F19: без печати | G19: 32 | H19: 24 | I19: 60 | L19: ПНД | M19: 14 | N19: 8.9376 | O19: 111.88686 | P19: 8.9376 | Q19: 20000
A20: 2012-01-22 | D20: Майка | E20: белый | F20: 1+1 | G20: 24 | H20: 18 | I20: 50 | L20: ПНД | M20: 14 | N20: 5.586 | O20: 179.018976 | P20: 5.586 | Q20: 20000
A21: 2012-01-22 | D21: Майка | E21: белый | F21: 2+0 | G21: 30 | H21: 15 | I21: 50 | L21: ПНД | M21: 13 | N21: 5.5575 | O21: 179.937022 | P21: 5.5575 | Q21: 50000
A22: 2012-01-22 | D22: Майка | E22: белый | F22: 1+0 | G22: 40 | H22: 20 | I22: 70 | L22: ПНД | M22: 20 | N22: 15.96 | O22: 62.6566416 | P22: 15.96 | Q22: 16000
A23: 2012-01-22 | D23: Майка | E23: белый | F23: 1+0 | G23: 30 | H23: 16 | I23: 58 | L23: ПНД | M23: 18 | N23: 9.12456 | O23: 109.5943256 | P23: 9.12456 | Q23: 10000
A24: 2012-01-22 | D24: Майка | E24: белый | F24: 1+1 | G24: 20 | I24: 65 | L24: ПНД | M24: 30 | N24: 7.41 | O24: 134.9527665 | P24: 7.41 | Q24: 14000
A25: 2016-01-25 | D25: фасовка | E25: белый | F25: 1+0 | G25: 20 | I25: 25 | L25: ПВД | M25: 50 | N25: 4.65 | O25: 215.0537634 | P25: 4.65 | Q25: 25000
A26: 2016-01-25 | D26: ВНУР | E26: белый | F26: 2+2 | G26: 39 | H26: 19 | I26: 50 | L26: ПНД | M26: 50 | N26: 27.55 | O26: 36.29764065 | P26: 27.55 | Q26: 5000
A27: 2016-01-25 | D27: Майка | E27: белый | F27: 1+1 | G27: 40 | H27: 20 | I27: 70 | L27: ПНД | M27: 30 | N27: 23.94 | O27: 41.7710944 | P27: 23.94 | Q27: 40000
A28: 2016-01-25 | D28: ВУР | E28: белый | F28: 1+0 | G28: 40 | I28: 50 | J28: 3 | K28: усил | L28: ПВД | M28: 70 | N28: 30.6024 | O28: 32.67717565 | P28: 27.6024 | Q28: 5000
A29: 2016-01-25 | D29: ВУР | E29: белый | F29: 1+0 | G29: 40 | I29: 50 | J29: 3 | K29: усил | L29: ПВД | M29: 70 | N29: 30.6024 | O29: 32.67717565 | P29: 27.6024 | Q29: 5000
A30: 2016-01-26 | D30: ВНУР | E30: белый | F30: 1+0 | G30: 30 | I30: 40 | L30: ПВД | M30: 70 | N30: 15.624 | O30: 64.00409626 | P30: 15.624 | Q30: 5000
A31: 2016-01-26 | D31: Майка | E31: черный | F31: 2+0 | G31: 28 | H31: 16 | I31: 54 | L31: ПНД | M31: 18 | N31: 8.12592 | O31: 123.0629886 | P31: 8.12592 | Q31: 30000
A32: 2016-01-26 | D32: Майка | E32: белый | F32: 1+0 | G32: 30 | H32: 15 | I32: 60 | L32: ПНД | M32: 23 | N32: 11.799 | O32: 155.9454191 | P32: 11.799 | Q32: 10000
A33: 2016-01-26 | D33: фасовка | E33: прозрачный | F33: 3+0 | G33: 15 | H33: 8 | I33: 30 | L33: ПНД | M33: 15 | N33: 1.9665 | O33: =PRODUCT(1000,R33)/N33 -> 508.517671 | P33: 1.9665 | Q33: 200000
A34: 2016-01-27 | D34: ВУР | E34: красный | F34: 1+1 | G34: 30 | I34: 40 | J34: 4 | K34: усил | L34: ПСД | M34: 65 | N34: 19.1304 | O34: 52.27282231 | P34: 16.1304 | Q34: 20000
A35: 2016-01-27 | D35: Майка | E35: белый | F35: 1+0 | G35: 25 | H35: 14 | I35: 45 | L35: ПНД | M35: 15 | N35: 5.00175 | O35: 199.9300245 | P35: 5.00175 | Q35: 15000
A36: 2016-01-27 | D36: Майка | E36: белый | F36: 2+0 | G36: 28 | H36: 14 | I36: 50 | L36: ПНД | M36: 20 | N36: 7.98 | O36: 125.3132832 | P36: 7.98 | Q36: 5000
A37: 2016-01-27 | D37: Майка | E37: белый | F37: 2+0 | G37: 38 | H37: 18 | I37: 60 | L37: ПНД | M37: 18 | N37: 11.4912 | O37: 87.02311334 | P37: 11.4912 | Q37: 10000
A38: 2016-01-27 | D38: ВНУР | E38: желтый | F38: Аптека | G38: 25 | I38: 30 | L38: ПНД | M38: 20 | N38: 2.85 | O38: 350.877193 | P38: 2.85 | Q38: 10000
A39: 2016-01-27 | D39: Майка | E39: белый | F39: 2+0 | G39: 30 | H39: 15 | I39: 60 | L39: ПНД | M39: 17 | N39: 8.721 | O39: 114.6657493 | P39: 8.721 | Q39: 80000
A40: 2016-01-27 | D40: Майка | E40: белый | F40: 2+0 | G40: 30 | H40: 16 | I40: 54 | L40: ПНД | M40: 20 | N40: 9.4392 | O40: 105.9411815 | P40: 9.4392 | Q40: 4000
A41: 2016-01-27 | D41: Майка | E41: белый | F41: 2+0 | G41: 30 | H41: 16 | I41: 54 | L41: ПНД | M41: 20 | N41: 9.4392 | O41: 105.9411815 | P41: 9.4392 | Q41: 4000
A42: 2016-01-27 | D42: Майка | E42: белый | F42: 2+0 | G42: 30 | H42: 16 | I42: 54 | L42: ПНД | M42: 20 | N42: 9.4392 | O42: 105.9411815 | P42: 9.4392 | Q42: 4000
A43: 2016-01-28 | D43: Майка | E43: белый | F43: 1+0 | G43: 30 | H43: 15 | I43: 60 | L43: ПНД | M43: 16 | N43: 8.208 | O43: 121.8323587 | P43: 8.208 | Q43: 10000
A44: 2016-01-28 | D44: Майка | E44: прозрачный | F44: без печати | G44: 32 | H44: 24 | I44: 60 | L44: ПНД | M44: 20 | N44: 12.768 | O44: 78.32080201 | P44: 12.768 | Q44: 50000
A45: 2016-01-28 | D45: ВУР | E45: красный | F45: 1+0 | G45: 58 | I45: 50 | K45: усил | L45: ПВД | M45: 60 | N45: 35.364 | O45: 28.27734419 | P45: 32.364 | Q45: 5000
A46: 2016-01-28 | D46: ВУР | E46: красный | F46: 1+0 | G46: 30 | I46: 40 | K46: усил | L46: ПВД | M46: 60 | N46: 16.392 | O46: 61.00536847 | P46: 13.392 | Q46: 10000
A47: 2016-01-28 | D47: ВУР | E47: прозрачный | F47: без печати | G47: 60 | I47: 50 | J47: 5 | K47: усил | L47: ПВД | M47: 70 | N47: 45.966 | O47: 21.75521037 | P47: 42.966 | Q47: 5000
A48: 2016-01-28 | D48: Майка | E48: белый | F48: 1+0 | G48: 35 | H48: 17 | I48: 60 | L48: ПНД | M48: 25 | N48: 14.82 | O48: 67.47638327 | P48: 14.82 | Q48: 10000
A49: 2016-01-29 | D49: Майка | E49: белый | F49: 1+0 | G49: 30 | H49: 15 | I49: 54 | L49: ПНД | M49: 15 | N49: 6.9255 | O49: 144.3939066 | P49: 6.9255 | Q49: 10000
A50: 2016-01-29 | D50: Рукав | E50: прозрачный | F50: 1+1 | G50: 12 | L50: ПВД | M50: 60 | N50: 1000 | O50: 1 | P50: 1000 | Q50: 500
A51: 2016-01-29 | D51: фасовка | E51: прозрачный | F51: без печати | G51: 25 | I51: 55 | L51: ПНД | M51: 16 | N51: 4.18 | O51: 239.2344498 | P51: 4.18 | Q51: 30000
A52: 2016-01-29 | D52: фасовка | E52: прозрачный | F52: без печати | G52: 17 | I52: 13 | L52: ПВД | M52: 50 | N52: 2.0553 | O52: 486.5469761 | P52: 2.0553 | Q52: 120000
A53: 2016-01-29 | D53: ВНУР | E53: белый | F53: без печати | G53: 38 | I53: 50 | L53: ПНД | M53: 40 | N53: 14.44 | O53: 69.25207756 | P53: 14.44 | Q53: 10000
A54: 2016-01-29 | D54: Майка | E54: белый | G54: 28 | H54: 14 | I54: 50 | L54: ПНД | M54: 17 | N54: 6.783 | O54: 147.427392 | P54: 6.783 | Q54: 20000
A55: 2016-01-29 | D55: ВНУР | E55: розовый | F55: 1+1 | G55: 20 | I55: 30 | L55: ПНД | M55: 30 | N55: 3.42 | O55: 292.3976608 | P55: 3.42 | Q55: 50000
A56: 2016-01-29 | D56: ВУР | E56: розовый | F56: 1+0 | G56: 30 | I56: 40 | J56: 3 | K56: усил | L56: ПВД | M56: 60 | N56: 17.3964 | O56: 57.48315743 | P56: 14.3964 | Q56: 10000
A57: 2016-01-29 | D57: фасовка | E57: оранжевый | F57: без печати | G57: 47 | I57: 50 | L57: ПСД | M57: 28 | N57: 12.3704 | O57: 80.83812973 | P57: 12.3704 | Q57: 40000
A58: 2016-01-29 | D58: фасовка | E58: прозрачный | F58: без печати | G58: 65 | I58: 95 | L58: ПСД | M58: 38 | N58: 44.1142 | O58: 22.66843783 | P58: 44.1142 | Q58: 40000
A59: 2016-01-29 | D59: Майка | E59: белый | F59: 2+0 | G59: 55 | H59: 25 | I59: 80 | L59: ПНД | M59: 23 | N59: 27.968 | O59: 35.75514874 | P59: 27.968 | Q59: 60000
A60: 2016-01-29 | D60: фасовка | E60: прозрачный | F60: 1+0 | G60: 55 | H60: 30 | I60: 92 | L60: ПНД | M60: 30 | N60: 44.574 | O60: 22.43460313 | P60: 44.574 | Q60: 12000
A61: 2016-02-01 | D61: Майка | E61: белый | F61: 2+0 | G61: 30 | H61: 16 | I61: 58 | L61: ПНД | M61: 18 | N61: 9.12456 | O61: 109.5943256 | P61: 9.12456 | Q61: 50000
A62: 2016-02-01 | D62: Майка | E62: белый | F62: 1+0 | G62: 40 | H62: 20 | I62: 70 | L62: ПНД | M62: 19 | N62: 15.162 | O62: 65.95435958 | P62: 15.162 | Q62: 5000
A63: 2016-02-01 | D63: фасовка | E63: прозрачный | F63: без печати | G63: 16 | I63: 24 | L63: ПВД | M63: 40 | N63: 2.85696 | O63: 350.0224014 | P63: 2.85696 | Q63: 100000
A64: 2016-02-01 | D64: фасовка | E64: белый | F64: без печати | G64: 40 | I64: 60 | L64: ПВД | M64: 50 | N64: 22.32 | O64: 44.80286738 | P64: 22.32 | Q64: 5000
A65: 2016-02-01 | D65: Майка | E65: белый | F65: 2+0 | G65: 58 | H65: 28 | I65: 80 | L65: ПНД | M65: 35 | N65: 45.752 | O65: 21.856968 | P65: 45.752 | Q65: 3000
A66: 2016-02-01 | D66: ВУР | E66: белый | F66: 2+0 | G66: 50 | I66: 58 | J66: 6 | K66: усил | L66: ПВД | M66: 80 | N66: 50.616 | O66: 19.7565987 | P66: 47.616 | Q66: 5000
A67: 2016-02-01 | D67: ВУР | E67: белый | F67: без печати | G67: 40 | I67: 50 | J67: 3 | K67: усил | L67: ПВД | M67: 50 | N67: =IF(D67="рукав",1000,SUM(IF(K67="усил","3","0"),(PRODUCT(SUM(G67,H67),SUM(I67,J67),M67,SUM(IF(L67="ПНД","0,95","0"),IF(L67="ПВД","0,93","0"),IF(L67="ПСД","0,94","0")),2)/10000))) -> 22.716 | O67: 44.02183483 | P67: 19.716 | Q67: 10000
A68: 2016-02-01 | D68: ВУР | E68: белый | F68: без печати | G68: 60 | I68: 60 | J68: 4 | K68: усил | L68: ПВД | M68: 50 | N68: 38.712 | O68: 25.83178343 | P68: =IF(D68="рукав",1000,SUM(IF(K68="усил","0","0"),(PRODUCT(SUM(G68,H68),SUM(I68,J68),M68,SUM(IF(L68="ПНД","0,95","0"),IF(L68="ПВД","0,93","0"),IF(L68="ПСД","0,94","0")),2)/10000))) -> 35.712 | Q68: 5000
A69: 2016-02-01 | D69: ВУР | E69: белый | F69: 1+1 | G69: 60 | I69: 50 | J69: 5 | K69: усил | L69: ПВД | M69: 60 | N69: 39.828 | O69: 25.10796425 | P69: 36.828 | Q69: 4000
A70: 2015-11-09 | D70: Майка | E70: белый | F70: 2+0 | G70: 34 | H70: 16 | I70: 54 | L70: ПНД | M70: 20 | N70: 10.26 | O70: 97.46588694 | P70: 10.26 | Q70: 15000
A71: 2016-02-02 | D71: ВУР | E71: желтый | F71: 2+0 | G71: 38 | I71: 48 | J71: 3 | K71: усил | L71: ПНД | M71: 50 | N71: 21.411 | O71: 46.70496474 | P71: 18.411 | Q71: 5000
A72: 2016-02-02 | D72: ВУР | E72: черный | F72: 1+0 | G72: 38 | I72: 48 | J72: 3 | K72: усил | L72: ПНД | M72: 50 | N72: 21.411 | O72: 46.70496474 | P72: 18.411 | Q72: 5000
A73: 2016-02-02 | D73: ВНУР | E73: оранжевый | F73: 1+1 | G73: 40 | I73: 50 | L73: ПНД | M73: 60 | N73: 22.8 | O73: 43.85964912 | P73: 22.8 | Q73: 6000
A74: 2016-02-02 | D74: Майка | E74: белый | F74: без печати | G74: 20 | I74: 55 | L74: ПНД | M74: 32 | N74: 6.688 | O74: 149.5215311 | P74: 6.688 | Q74: 20000
A75: 2016-02-02 | D75: ВУР | E75: белый | F75: 1+0 | G75: 30 | I75: 40 | K75: усил | L75: ПСД | M75: 40 | N75: 12.024 | O75: 83.16699933 | P75: 9.024 | Q75: 15000
A76: 2016-02-02 | D76: Майка | E76: белый | G76: 40 | H76: 20 | I76: 65 | L76: ПНД | M76: 20 | N76: 14.82 | O76: 67.47638327 | P76: 14.82 | Q76: 30000
A77: 2016-02-02 | D77: ВУР | E77: белый | F77: 1+1 | G77: 40 | I77: 50 | J77: 4 | K77: усил | L77: ПВД | M77: 70 | N77: 31.1232 | O77: 32.1303722 | P77: 28.1232 | Q77: 5000
A78: 2016-02-02 | D78: фасовка | E78: прозрачный | F78: 1+0 | G78: 25 | H78: 10 | I78: 40 | L78: ПНД | M78: 15 | N78: 3.99 | O78: 250.6265664 | P78: 3.99 | Q78: 25000
A79: 2016-02-02 | D79: фасовка | E79: прозрачный | F79: 1+0 | G79: 37 | H79: 16 | I79: 70 | L79: ПНД | M79: 15 | N79: 10.5735 | O79: 94.5760628 | P79: 10.5735 | Q79: 15000
A80: 2016-02-02 | D80: фасовка | E80: прозрачный | F80: 1+0 | G80: 34 | H80: 15 | I80: 54 | L80: ПНД | M80: 15 | N80: 7.5411 | O80: 132.6066489 | P80: 7.5411 | Q80: 15000
A81: 2016-02-02 | D81: ВУР | E81: белый | F81: 1+0 | G81: 40 | I81: 50 | J81: 4 | K81: усил | L81: ПВД | M81: 70 | N81: 31.1232 | O81: 32.1303722 | P81: 28.1232 | Q81: 25000
A82: 2016-02-02 | D82: ВУР | E82: белый | F82: 1+1 | G82: 30 | I82: 40 | K82: усил | L82: ПВД | M82: 70 | N82: 18.624 | O82: 53.69415808 | P82: 15.624 | Q82: 15000
A83: 2016-02-02 | D83: Майка | E83: белый | F83: 1+0 | H83: 14 | I83: 50 | L83: ПНД | M83: 20 | N83: 2.66 | O83: 375.9398496 | P83: 2.66 | Q83: 17000
A84: 2016-02-02 | D84: ВНУР | E84: белый | F84: 2+0 | G84: 20 | I84: 30 | J84: 3 | L84: ПСД | M84: 30 | N84: 3.7224 | O84: 268.6438857 | P84: 3.7224 | Q84: 30000
A85: 2016-02-03 | D85: фасовка | E85: прозрачный | F85: без печати | G85: 50 | H85: 18 | I85: 80 | L85: ПНД | M85: 30 | N85: =IF(D85="рукав",1000,SUM(IF(K85="усил","3","0"),(PRODUCT(SUM(G85,H85),SUM(I85,J85),M85,SUM(IF(L85="ПНД","0,95","0"),IF(L85="ПВД","0,93","0"),IF(L85="ПСД","0,94","0")),2)/10000))) -> 31.008 | O85: =PRODUCT(1000,R85)/N85 -> 32.249742 | P85: 31.008 | Q85: 10000
A86: 2016-02-03 | D86: фасовка | E86: прозрачный | F86: без печати | G86: 50 | H86: 20 | I86: 110 | L86: ПНД | M86: 20 | N86: =IF(D86="рукав",1000,SUM(IF(K86="усил","3","0"),(PRODUCT(SUM(G86,H86),SUM(I86,J86),M86,SUM(IF(L86="ПНД","0,95","0"),IF(L86="ПВД","0,93","0"),IF(L86="ПСД","0,94","0")),2)/10000))) -> 29.26 | O86: =PRODUCT(1000,R86)/N86 -> 34.17634997 | P86: 29.26 | Q86: 10000
A87: 2016-02-04 | D87: ВУР | E87: красный | F87: без печати | G87: 40 | I87: 50 | J87: 3 | K87: усил | L87: ПВД | M87: 50 | N87: =IF(D87="рукав",1000,SUM(IF(K87="усил","3","0"),(PRODUCT(SUM(G87,H87),SUM(I87,J87),M87,SUM(IF(L87="ПНД","0,95","0"),IF(L87="ПВД","0,93","0"),IF(L87="ПСД","0,94","0")),2)/10000))) -> 22.716 | O87: =PRODUCT(1000,R87)/N87 -> 44.02183483 | P87: 19.716 | Q87: 3000
A88: 2016-02-04 | D88: ВУР | E88: белый | F88: без печати | G88: 40 | I88: 50 | J88: 3 | K88: усил | L88: ПВД | M88: 50 | N88: 22.716 | O88: 44.02183483 | P88: 19.716 | Q88: 3000
A89: 2016-02-04 | D89: Майка | E89: белый | F89: 1+0 | G89: 28 | H89: 14 | I89: 50 | L89: ПНД | M89: 15 | N89: 5.985 | O89: 167.0843776 | P89: 5.985 | Q89: 10000
A90: 2016-02-04 | D90: Майка | E90: белый | F90: 2+0 | G90: 30 | H90: 15 | I90: 60 | L90: ПНД | M90: 18 | N90: 9.234 | O90: 108.2954299 | P90: 9.234 | Q90: 5000
A91: 2016-02-04 | D91: ВУР | E91: белый | F91: 1+0 | G91: 20 | I91: 30 | J91: 3 | K91: усил | L91: ПВД | M91: 50 | N91: 9.138 | O91: 109.4331364 | P91: 6.138 | Q91: 5000
A92: 2016-02-04 | D92: Фасовка | E92: прозрачный | F92: 2+0 | G92: 40 | I92: 75 | L92: ПВД | M92: 50 | N92: 27.9 | O92: 35.84229391 | P92: 27.9 | Q92: 5000
A93: 2016-02-04 | D93: Майка | E93: белый | F93: 1+0 | G93: 20 | H93: 10 | I93: 40 | L93: ПНД | M93: 18 | N93: 4.104 | O93: 243.6647173 | P93: 4.104 | Q93: 25000
A94: 2016-02-04 | D94: Майка | E94: белый | F94: 1+0 | G94: 40 | H94: 20 | I94: 60 | L94: ПНД | M94: 18 | N94: 12.312 | O94: 81.22157245 | P94: 12.312 | Q94: 20000
A95: 2016-02-04 | D95: Рукав | E95: прозрачный | F95: без печати | G95: 9 | L95: ПНД | M95: 20 | N95: 1000 | O95: 1 | P95: 1000 | Q95: 100
A96: 2016-02-04 | D96: Майка | E96: белый | F96: 4+0 | G96: 28 | H96: 14 | I96: 50 | L96: ПНД | M96: 15 | N96: =IF(D96="рукав",1000,SUM(IF(K96="усил","3","0"),(PRODUCT(SUM(G96,H96),SUM(I96,J96),M96,SUM(IF(L96="ПНД","0,95","0"),IF(L96="ПВД","0,93","0"),IF(L96="ПСД","0,94","0")),2)/10000))) -> 5.985 | O96: =PRODUCT(1000,R96)/N96 -> 167.0843776 | P96: 5.985 | Q96: 20000
A97: 2016-02-04 | D97: Майка | E97: белый | F97: 1+0 | G97: 30 | H97: 16 | I97: 58 | L97: ПНД | M97: 18 | N97: =IF(D97="рукав",1000,SUM(IF(K97="усил","3","0"),(PRODUCT(SUM(G97,H97),SUM(I97,J97),M97,SUM(IF(L97="ПНД","0,95","0"),IF(L97="ПВД","0,93","0"),IF(L97="ПСД","0,94","0")),2)/10000))) -> 9.12456 | O97: =PRODUCT(1000,R97)/N97 -> 109.5943256 | P97: 9.12456 | Q97: 10000
A98: 2016-02-04 | D98: Майка | E98: светло- желтый | F98: 3+0 | G98: 30 | H98: 16 | I98: 54 | L98: ПНД | M98: 16 | N98: =IF(D98="рукав",1000,SUM(IF(K98="усил","3","0"),(PRODUCT(SUM(G98,H98),SUM(I98,J98),M98,SUM(IF(L98="ПНД","0,95","0"),IF(L98="ПВД","0,93","0"),IF(L98="ПСД","0,94","0")),2)/10000))) -> 7.55136 | O98: =PRODUCT(1000,R98)/N98 -> 132.4264768 | P98: 7.55136 | Q98: 10000
A99: 2016-02-04 | D99: фасовка | E99: белый | F99: 1+0 | G99: 22 | I99: 48 | L99: ПСД | M99: 30 | N99: =IF(D99="рукав",1000,SUM(IF(K99="усил","3","0"),(PRODUCT(SUM(G99,H99),SUM(I99,J99),M99,SUM(IF(L99="ПНД","0,95","0"),IF(L99="ПВД","0,93","0"),IF(L99="ПСД","0,94","0")),2)/10000))) -> 5.95584 | O99: =PRODUCT(1000,R99)/N99 -> 167.9024285 | P99: 5.95584 | Q99: 7000 | AB99: уп | AD99: 1.23
A100: 2016-02-04 | D100: фасовка | E100: белый | F100: 2+0 | G100: 30 | I100: 50 | L100: ПСД | M100: 30 | N100: 8.46 | O100: 118.2033097 | P100: 8.46 | Q100: 15000 | AB100: шт. | AD100: 0.86
A101: 2016-02-04 | D101: фасовка | E101: белый | F101: 2+0 | G101: 31 | I101: 48 | L101: ПСД | M101: 30 | N101: 8.39232 | O101: 119.1565622 | P101: 8.39232 | Q101: 15000 | AB101: уп | AD101: 1.22
A102: 2016-02-04 | D102: ВУР | E102: белый | F102: 1+0 | G102: 30 | I102: 40 | J102: 3 | K102: усил | L102: ПВД | M102: 50 | N102: 14.997 | O102: 66.68000267 | P102: 11.997 | Q102: 7000
A103: 2016-02-04 | D103: Майка | E103: белый | F103: 2+0 | G103: 44 | H103: 18 | I103: 70 | L103: ПНД | M103: 18 | N103: 14.8428 | O103: 67.37273291 | P103: 14.8428 | Q103: 10000
A104: 2016-02-04 | D104: Майка | E104: белый | F104: без печати | G104: 30 | H104: 16 | I104: 58 | L104: ПНД | M104: 18 | N104: 9.12456 | O104: 109.5943256 | P104: 9.12456 | Q104: 5000
A105: 2016-02-04 | D105: Фасовка | E105: прозрачный | F105: без печати | G105: 42 | I105: 58 | L105: ПНД | M105: 25 | N105: 11.571 | O105: 86.42295394 | P105: 11.571 | Q105: 12000
A106: 2016-02-04 | D106: Майка | E106: белый | F106: 3+0 | G106: 38 | H106: 18 | I106: 70 | L106: ПНД | M106: 18 | N106: 13.4064 | O106: 74.59124 | P106: 13.4064 | Q106: 10000
A107: 2016-02-04 | D107: Майка | E107: белый | F107: 2+0 | G107: 38 | H107: 18 | I107: 70 | L107: ПНД | M107: 18 | N107: 13.4064 | O107: 74.59124 | P107: 13.4064 | Q107: 10000
A108: 2016-02-05 | D108: ВУР | E108: белый | F108: 1+1 | G108: 40 | I108: 50 | J108: 3.5 | K108: усил | L108: ПВД | M108: 50 | N108: 22.902 | O108: 43.66430879 | P108: 19.902 | Q108: 5000
A109: 2016-02-05 | D109: Майка | E109: белый | F109: 3+0 | G109: 40 | H109: 20 | I109: 70 | L109: ПНД | M109: 20 | N109: 15.96 | O109: 62.6566416 | P109: 15.96 | Q109: 10000
A110: 2016-02-05 | D110: ВУР | E110: белый | F110: 1+1 | G110: 38 | I110: 50 | J110: 3 | K110: усил | L110: ПСД | M110: 50 | N110: 21.9316 | O110: 45.59630852 | P110: 18.9316 | Q110: 5000
A111: 2016-02-05 | D111: ВУР | E111: белый | F111: 1+1 | G111: 30 | I111: 40 | J111: 3 | K111: усил | L111: ПСД | M111: 50 | N111: 15.126 | O111: 66.11133148 | P111: 12.126 | Q111: 7000
A112: 2016-02-05 | D112: фасовка | E112: прозрачный | F112: 2+0 | G112: 26 | I112: 40 | L112: ПВД | M112: 50 | N112: 9.672 | O112: 103.3912324 | P112: 9.672 | Q112: 20000
A113: 2016-02-05 | D113: ВУР | E113: белый | F113: 1+0 | G113: 30 | I113: 40 | J113: 3 | K113: усил | L113: ПВД | M113: 80 | N113: 22.1952 | O113: 45.05478662 | P113: 19.1952 | Q113: 5000
A114: 2016-02-05 | D114: Майка | E114: оранжевый | F114: 1+1 | G114: 30 | H114: 16 | I114: 60 | L114: ПСД | M114: 25 | N114: 12.972 | O114: 77.08911502 | P114: 12.972 | Q114: 10000
A115: 2016-02-05 | D115: ВУР | E115: белый | F115: 1+0 | G115: 38 | I115: 50 | J115: 3 | K115: усил | L115: ПВД | M115: 50 | N115: 21.7302 | O115: 46.01890457 | P115: 18.7302 | Q115: 1500
A116: 2015-07-24 | D116: Фасовка | E116: белый | F116: 3+0 | G116: 29 | I116: 48 | L116: ПСД | M116: 30 | N116: =SUM(IF(K116="усил","3","0"),(PRODUCT(SUM(G116,H116),SUM(I116,J116),M116,SUM(IF(L116="ПНД","0,95","0"),IF(L116="ПВД","0,93","0"),IF(L116="ПСД","0,94","0")),2)/10000)) -> 7.85088 | O116: =PRODUCT(1000,R116)/N116 -> 127.3742561 | P116: 7.85088 | Q116: 15000
A124: 2016-02-05 | B124: производство пакетов | C124: Китчен | D124: Майка | E124: белый | F124: 2+2 | G124: 30 | H124: 15 | I124: 60 | L124: ПНД | M124: 16 | N124: 8.208 | O124: 121.8323587 | Q124: 15000
A125: 2016-02-05 | B125: Истрапласт | C125: Спорт | D125: Майка | E125: белый | F125: 1+0 | G125: 32 | H125: 16 | I125: 60 | L125: ПНД | M125: 15 | N125: =IF(D125="рукав",1000,SUM(IF(K125="усил","3","0"),(PRODUCT(SUM(G125,H125),SUM(I125,J125),M125,SUM(IF(L125="ПНД","0,95","0"),IF(L125="ПВД","0,93","0"),IF(L125="ПСД","0,94","0")),2)/10000))) -> 8.208 | O125: 121.8323587 | Q125: 10000
A126: 2016-02-05 | B126: тд полимеров | C126: "майка" 30+15*60 ПНД 14мкм п/э белый 1+0 тираж 20 000шт - 1.16р/шт | D126: Майка | E126: белый | F126: 1+0 | G126: 30 | H126: 15 | I126: 60 | L126: ПНД | M126: 14 | N126: =IF(D126="рукав",1000,SUM(IF(K126="усил","3","0"),(PRODUCT(SUM(G126,H126),SUM(I126,J126),M126,SUM(IF(L126="ПНД","0,95","0"),IF(L126="ПВД","0,93","0"),IF(L126="ПСД","0,94","0")),2)/10000))) -> 7.182 | O126: 139.2369813 | Q126: 20000
A127: 2016-02-05 | B127: тд полимеров | C127: "майка" 44+18*70 ПНД 18мкм п/э белый 1+0 тираж 20 000шт - 2.30р/шт | D127: Майка | E127: белый | F127: 1+0 | G127: 44 | H127: 18 | I127: 70 | L127: ПНД | M127: 18 | N127: 14.8428 | O127: 67.37273291 | Q127: 20000
A128: 2016-02-05 | B128: тд полимеров | C128: "40*50+4 ПВД ВУР 55мкм п/э синий 1+0 тираж 10 000шт - 4.11р/шт | D128: ВУР | E128: синий | F128: 1+0 | G128: 40 | I128: 50 | J128: 4 | K128: усил | L128: ПВД | M128: 55 | N128: 25.0968 | O128: 39.84571738 | Q128: 10000
A129: 2016-02-05
A130: 2016-02-05
A131: 2016-02-05
A132: 2016-02-05
A133: 2016-02-05
AA134: =#REF!-#REF!*0.09 -> 
AA135: -9000

Sheet Суперы (hidden)
B1: Цена в $
A2: Зеленый PE 92307 | B2: 6.1 | C2: =(B2*инф!$K$10-инф!$K$14)*5% ->  | D2: =C2-4.5 -> 
A3: Зеленый 27045 | B3: 4.59 | C3: =(B3*инф!$K$10-инф!$K$14)*5% ->  | D3: =C3-4.5 -> 
A4: Голубой МВ 26095 BLUE (Кимовский) | B4: 4.9 | C4: =(B4*инф!$K$10-инф!$K$14)*5% ->  | D4: =C4-4.5 -> 
A5: Синий РЕ 82393 | B5: 5.85 | C5: =(B5*инф!$K$10-инф!$K$14)*5% -> 
A6: Фиолетовый РЕ 72075 | B6: 4.68 | C6: =(B6*инф!$K$10-инф!$K$14)*5% -> 
A7: Красный PE 62375 | B7: 4.87 | C7: =(B7*инф!$K$10-инф!$K$14)*5% -> 
A8: Желтый МВ205A YELLOW PE 3499/NEW | B8: 4.2 | C8: =(B8*инф!$K$10-инф!$K$14)*5% -> 
A9: Оранжевый МВ 023156 | B9: 4.36 | C9: =(B9*инф!$K$10-инф!$K$14)*5% -> 
A10: Черный N/B 2100 BLACK | B10: 2.62 | C10: =(B10*инф!$K$10-инф!$K$14)*5% -> 
A11: Серебро МВ РЕ 8223 SILVER | B11: 4 | C11: =(B11*инф!$K$10-инф!$K$14)*5% -> 
A12: Синий МВ 7111 BLUE Кимовский | B12: 3.58 | C12: =(B12*инф!$K$10-инф!$K$14)*5% -> 
A13: Белый МВ 81852 | B13: 2.6 | C13: =(B13*инф!$K$10-инф!$K$14)*5% -> 
A14: Оранжевый МВ 023156 | B14: 7.8 | C14: =(B14*инф!$K$10-инф!$K$14)*5% -> 
A15: Салатовый МВ 27 226 | B15: 3.9 | C15: =(B15*инф!$K$10-инф!$K$14)*5% ->  | D15: =C15-4.5 -> 
A16: Черный ЕН 9201V | B16: 1.55 | C16: =(B16*инф!$K$10-инф!$K$14)*5% -> 
A17: Скользячка PE: 0045 EFIUKAMIDE SLIP | B17: 3.73 | C17: =(B17*инф!$K$10-инф!$K$14)*5% -> 
A18: Скользячка SLIP Антиблок 0074/SE | B18: 4.09 | C18: =(B18*инф!$K$10-инф!$K$14)*5% -> 
A19: Скользячка SL1207 SLIP | B19: 3.74 | C19: =(B19*инф!$K$10-инф!$K$14)*5% -> 

Sheet инф (hidden)
A1: ключ
A2: =B2&C2 -> майкабез печати | B2: майка | C2: без печати | D2: 37
A3: майка1+0 | B3: майка | C3: 1+0 | D3: 42
A4: майка2+0 | B4: майка | C4: 2+0 | D4: 47
A5: майка3+0 | B5: майка | C5: 3+0 | D5: 52
A6: майка1+1 | B6: майка | C6: 1+1 | D6: 47
A7: майка2+1 | B7: майка | C7: 2+1 | D7: 52 | I7: БЕЗ ПЕЧАТИ
A8: майка2+2 | B8: майка | C8: 2+2 | D8: 57 | I8: 1+0
A9: майка3+1 | B9: майка | C9: 3+1 | D9: 57 | I9: 2+0 | K9: Доллар | L9: Евро | M9: клиент
A10: майка4+0 | B10: майка | C10: 4+0 | D10: 57 | H10: РУКАВ | I10: 3+0 | K10: =#REF! ->  | L10: =#REF! ->  | M10: 10
A11: фасовкабез печати | B11: фасовка | C11: без печати | D11: 38 | H11: МАЙКА | I11: 1+1 | K11: ПВД | L11: ПНД | M11: ПСД
A12: фасовка1+0 | B12: фасовка | C12: 1+0 | D12: 45 | H12: ФАСОВКА | I12: 2+1 | K12: =#REF! ->  | L12: =#REF! ->  | M12: =(K12+L12)/2 -> 
A13: фасовка2+0 | B13: фасовка | C13: 2+0 | D13: 50 | H13: ВУР | I13: 2+2
A14: фасовка3+0 | B14: фасовка | C14: 3+0 | D14: 55 | G14: =H16&I16 ->  | H14: ВнУР | I14: 3+1 | K14: =SUM(IF(H17="ПВД",K12,0)+IF(H17="ПНД",L12,0)+IF(H17="ПСД",M12,0)) ->  | L14: =VLOOKUP(G14,A1:D55,4,0) ->  | M14: =ROUND((SUM(IF(I17="белый",Суперы!C13,0)+IF(I17="зеленый",Суперы!C2,0)+IF(I17="салатовый",Суперы!C15,0)+IF(I17="красный",Суперы!C7,0)+IF(I17="оранжевый",Суперы!C9,0)+IF(I17="голубой",Суперы!C12,0)+IF(I17="черный",Суперы!C10,0)+IF(I17="желтый",Суперы!C8,0)+IF(I17="серебро",Суперы!C11,0)+IF(I17="прозрачный",0,0)+IF(I17="фиолетовый",Суперы!C6,0)+IF(I17="бежевый",14,0))+IF(I17="СИНИЙ",Суперы!C5,0)),2) ->  | N14: =IF(#REF!="Да",M10,0) -> 
A15: фасовка1+1 | B15: фасовка | C15: 1+1 | D15: 50 | H15: НАРЕЗКА | I15: 4+0
A16: фасовка2+1 | B16: фасовка | C16: 2+1 | D16: 55 | H16: =#REF! ->  | I16: =#REF! ->  | J16: =K14+L14+M14+N14 -> 
A17: фасовка2+2 | B17: фасовка | C17: 2+2 | D17: 60 | H17: =#REF! ->  | I17: =#REF! -> 
A18: фасовка3+1 | B18: фасовка | C18: 3+1 | D18: 60 | H18: ПНД | I18: БЕЛЫЙ | N18: да
A19: фасовка4+0 | B19: фасовка | C19: 4+0 | D19: 60 | H19: ПВД | I19: ПРОЗРАЧНЫЙ | N19: нет
A20: Рукавбез печати | B20: Рукав | C20: без печати | D20: 28 | H20: ПСД | I20: КРАСНЫЙ
A21: Рукав1+0 | B21: Рукав | C21: 1+0 | D21: 35 | I21: ЗЕЛЕНЫЙ
A22: Рукав2+0 | B22: Рукав | C22: 2+0 | D22: 40 | I22: ЧЕРНЫЙ
A23: Рукав3+0 | B23: Рукав | C23: 3+0 | D23: 45 | I23: ЖЕЛТЫЙ
A24: Рукав1+1 | B24: Рукав | C24: 1+1 | D24: 40 | I24: ОРАНЖЕВЫЙ
A25: Рукав2+1 | B25: Рукав | C25: 2+1 | D25: 45 | I25: СЕРЕБРО
A26: Рукав2+2 | B26: Рукав | C26: 2+2 | D26: 50 | I26: ГОЛУБОЙ
A27: Рукав3+1 | B27: Рукав | C27: 3+1 | D27: 50 | I27: ФИОЛЕТОВЫЙ
A28: Рукав4+0 | B28: Рукав | C28: 4+0 | D28: 50 | I28: БЕЖЕВЫЙ
A29: ВНУРбез печати | B29: ВНУР | C29: без печати | D29: 38 | I29: СИНИЙ
A30: ВНУР1+0 | B30: ВНУР | C30: 1+0 | D30: 45 | I30: САЛАТОВЫЙ
A31: ВНУР2+0 | B31: ВНУР | C31: 2+0 | D31: 50
A32: ВНУР3+0 | B32: ВНУР | C32: 3+0 | D32: 55
A33: ВНУР1+1 | B33: ВНУР | C33: 1+1 | D33: 50
A34: =B34&C34 -> ВНУР2+1 | B34: ВНУР | C34: 2+1 | D34: 55
A35: ВНУР2+2 | B35: ВНУР | C35: 2+2 | D35: 60
A36: ВНУР3+1 | B36: ВНУР | C36: 3+1 | D36: 60
A37: ВНУР4+0 | B37: ВНУР | C37: 4+0 | D37: 60
A38: ВУРбез печати | B38: ВУР | C38: без печати | D38: 38
A39: ВУР1+0 | B39: ВУР | C39: 1+0 | D39: 45
A40: ВУР2+0 | B40: ВУР | C40: 2+0 | D40: 50
A41: ВУР3+0 | B41: ВУР | C41: 3+0 | D41: 55
A42: ВУР1+1 | B42: ВУР | C42: 1+1 | D42: 50
A43: ВУР2+1 | B43: ВУР | C43: 2+1 | D43: 55
A44: ВУР2+2 | B44: ВУР | C44: 2+2 | D44: 60
A45: ВУР3+1 | B45: ВУР | C45: 3+1 | D45: 60
A46: ВУР4+0 | B46: ВУР | C46: 4+0 | D46: 60
A47: НАРЕЗКАбез печати | B47: НАРЕЗКА | C47: без печати | D47: 38
A48: НАРЕЗКА1+0 | B48: НАРЕЗКА | C48: 1+0 | D48: 45
A49: НАРЕЗКА2+0 | B49: НАРЕЗКА | C49: 2+0 | D49: 50
A50: НАРЕЗКА3+0 | B50: НАРЕЗКА | C50: 3+0 | D50: 55
A51: НАРЕЗКА1+1 | B51: НАРЕЗКА | C51: 1+1 | D51: 50
A52: НАРЕЗКА2+1 | B52: НАРЕЗКА | C52: 2+1 | D52: 55
A53: НАРЕЗКА2+2 | B53: НАРЕЗКА | C53: 2+2 | D53: 60
A54: НАРЕЗКА3+1 | B54: НАРЕЗКА | C54: 3+1 | D54: 60
A55: НАРЕЗКА4+0 | B55: НАРЕЗКА | C55: 4+0 | D55: 60
C58: №коэфф | D58: =MATCH($I$58,E59:E69,1) ->  | I58: =#REF! -> 
D59: 1 | E59: 1 | F59: 1.4 | G59: =F59*$J$16 -> 
D60: 2 | E60: 60 | F60: 1.3
D61: 3 | E61: 75 | F61: 1.2
D62: 4 | E62: 83 | F62: 1.14
D63: 5 | E63: 91 | F63: 1.07
D64: 6 | E64: 100 | F64: 1
D65: 7 | E65: 200 | F65: 0.995
D66: 8 | E66: 300 | F66: 0.9885
D67: 9 | E67: 500 | F67: 0.98
D68: 10 | E68: 1000 | F68: 0.97
D69: 11 | E69: 5000 | F69: 0.96
G70: =ROUND((SUM(IF(D58=D59,G59,0)+IF(D58=D60,G60,0)+IF(D58=D61,G61,0)+IF(D58=D62,G62,0)+IF(D58=D63,G63,0)+IF(D58=D64,G64,0)+IF(D58=D65,G65,0)+IF(D58=D66,G66,0)+IF(D58=D67,G67,0)+IF(D58=D68,G68,0)+IF(D58=D69,G69,0))),2) ->  | I70: =INDEX(D59:G69,D58,4) -> 
I71: =#REF! -> 
C72: №поз | D72: =MATCH($I$71,E73:E89,-1) ->  | E72: гр
D73: 1 | E73: 1500000 | F73: 1 | G73: =F73*$G$70 -> 
D74: 2 | E74: 200 | F74: 1
D75: 3 | E75: 100 | F75: 1
D76: 4 | E76: 50 | F76: 1
D77: 5 | E77: 30 | F77: 1
D78: 6 | E78: 20 | F78: 1
D79: 7 | E79: 10 | F79: 1.01
D80: 8 | E80: 8 | F80: 1.04
D81: 9 | E81: 6 | F81: 1.075
D82: 10 | E82: 4 | F82: 1.1
D83: 11 | E83: 3.5 | F83: 1.2
D84: 12 | E84: 3 | F84: 1.3
D85: 13 | E85: 2.5 | F85: 1.6
D86: 14 | E86: 2 | F86: 1.7
D87: 15 | E87: 1.5 | F87: 1.8
D88: 16 | E88: 1 | F88: 1.95
D89: 17 | E89: 0.4 | F89: 2.56
G92: =ROUND((SUM(IF(D72=D73,G73,0)+IF(D72=D76,G76,0)+IF(D72=D75,G75,0)+IF(D72=D74,G74,0)+IF(D72=D79,G79,0)+IF(D72=D80,G80,0)+IF(D72=D78,G78,0)+IF(D72=D77,G77,0)+IF(D72=D81,G81,0)+IF(D72=D82,G82,0)+IF(D72=D83,G83,0)+IF(D72=D84,G84,0)+IF(D72=D85,G85,0)+IF(D72=D86,G86,0)+IF(D72=D87,G87,0)+IF(D72=D88,G88,0)+IF(D72=D89,G89,0))),2) ->  | I92: =INDEX(D73:G89,D72,4) -> 
